fUSD/lending_fUSD_20240730
["ID","MTS","AMOUNT","RATE_DAILY","PERIOD"]
[333670618,1722335434084,-992.96,0.00010999,2]
[333670619,1722335434095,-992.96,0.00010999,2]
[333670620,1722335434106,-992.96,0.00010999,2]
[333670621,1722335434116,-992.96,0.00010999,2]
[333670622,1722335434126,-992.96,0.00010999,2]
[333670623,1722335434136,-992.96,0.00010999,2]
[333670624,1722335434146,-992.96,0.00010999,2]
[333670625,1722335434156,-992.96,0.00010999,2]
[333670626,1722335434167,-992.96,0.00010999,2]
[333670627,1722335434178,-993.08,0.00010999,2]
[333670628,1722335434188,-500.0,0.00010999,2]
[333670629,1722335434199,-500.0,0.00010999,2]
[333670630,1722335434209,-500.0,0.00010999,2]
[333670631,1722335434220,-500.0,0.00010999,2]
[333670632,1722335434230,-500.0,0.00010999,2]
[333670633,1722335434240,-500.0,0.00010999,2]
[333670634,1722335434251,-199.27,0.00010999,2]
[333670635,1722335434261,-500.0,0.00010999,2]
[333670636,1722335434274,-500.0,0.00010999,2]
[333670637,1722335434284,-632.07602874,0.00010999,2]
[333670638,1722335434295,-500.0,0.00010999,2]
[333670639,1722335434306,-500.0,0.00010999,2]
[333670640,1722335434316,-339.98557193,0.00010999,2]
[333670641,1722335434327,-440.84649604,0.00010999,2]
[333670642,1722335434338,-195.4890769,0.00010999,2]
[333670643,1722335434349,-643.15,0.00010999,2]
[333670644,1722335434359,-500.0,0.00010999,2]
[333670645,1722335434370,-500.0,0.00010999,2]
[333670646,1722335434381,-500.0,0.00010999,2]
[333670647,1722335434391,-500.0,0.00010999,2]
[333670648,1722335434401,-500.0,0.00010999,2]
[333670649,1722335434412,-593.57684139,0.00010999,2]
[333670650,1722335434422,-182.64,0.00010999,2]
[333670651,1722335434432,-314.06029581,0.00010999,2]
[333670652,1722335434442,-310.41934052,0.00010999,2]
[333670653,1722335434452,-482.99915459,0.00010999,2]
[333670654,1722335434462,-268.01444964,0.00010999,2]
[333670655,1722335434471,-192.25197854,0.00010999,2]
[333670656,1722335434482,-500.0,0.00010999,2]
[333670657,1722335434492,-500.0,0.00010999,2]
[333670658,1722335434501,-500.0,0.00010999,2]
[333670659,1722335434511,-500.0,0.00010999,2]
[333670660,1722335434523,-500.0,0.00010999,2]
[333670661,1722335434534,-500.0,0.00010999,2]
[333670662,1722335434544,-500.0,0.00010999,2]
[333670663,1722335434554,-500.0,0.00010999,2]
[333670664,1722335434563,-500.0,0.00010999,2]
[333670665,1722335434573,-309.08088242,0.00010999,2]
[333670666,1722335434583,-500.0,0.00010999,2]
[333670667,1722335434593,-500.0,0.00010999,2]
[333670668,1722335434604,-208.03513308,0.00010999,2]
[333670669,1722335434614,-166.77752623,0.00010999,2]
[333670670,1722335434624,-500.0,0.00010999,2]
[333670671,1722335434634,-487.7698569,0.00010999,2]
[333670672,1722335434643,-525.22158063,0.00010999,2]
[333670673,1722335434653,-512.91203262,0.00010999,2]
[333670674,1722335434662,-523.20810754,0.00010999,2]
[333670675,1722335434671,-507.19097969,0.00010999,2]
[333670676,1722335434681,-509.1276066,0.00010999,2]
[333670677,1722335434691,-8862.79,0.00010999,2]
[333670678,1722335434700,-573.31858834,0.00010999,2]
[333670679,1722335434710,-500.0,0.00010999,2]
[333670680,1722335434720,-500.0,0.00010999,2]
[333670681,1722335434730,-180.92859779,0.00010999,2]
[333670682,1722335434739,-195.92979361,0.00010999,2]
[333670683,1722335434748,-426.7165852,0.00010999,2]
[333670684,1722335434758,-500.0,0.00010999,2]
[333670685,1722335434769,-500.0,0.00010999,2]
[333670686,1722335434778,-340.38244213,0.00010999,2]
[333670687,1722335434788,-167.58934471,0.00010999,2]
[333670688,1722335434798,-154.92195056,0.00010999,2]
[333670689,1722335434808,-223502.55551012,0.00011,2]
[333670690,1722335435036,-7767.54302045,0.00011,2]
[333670691,1722335435048,-1512052.86477765,0.00011,2]
[333670692,1722335435058,-6650.82022301,0.00011,2]
[333670693,1722335435076,-225.95,0.0001099,2]
[333670694,1722335435283,-1316.35956212,0.00011,2]
[333670695,1722335435295,-732.10144154,0.00011,2]
[333670696,1722335435312,-1166.02583075,0.00011,2]
[333670697,1722335435324,-2101.31285773,0.00011,2]
[333670698,1722335435335,-2871.78515676,0.00011,2]
[333670699,1722335435347,-1533.16988502,0.00011,2]
[333670700,1722335435359,-10808.08059513,0.00011,2]
[333670701,1722335435377,-225.95,0.0001099,2]
[333670702,1722335435387,-769.09452187,0.00011,2]
[333670703,1722335435398,-766.70047964,0.00011,2]
[333670715,1722335438264,-225.95,0.0001099,2]
[333670717,1722335438276,-225.95,0.0001099,2]
[333670719,1722335438286,-225.95,0.0001099,2]
[333670720,1722335438295,-225.95,0.0001099,2]
[333670721,1722335438305,-208.99876424,0.0001099,2]
[333670722,1722335438316,-16.95123576,0.0001099,2]
[333670723,1722335438325,-225.95,0.0001099,2]
[333670724,1722335438335,-225.95,0.0001099,2]
[333670725,1722335438344,-177.32273209,0.0001099,2]
[333670726,1722335438357,-48.62726791,0.0001099,2]
[333670727,1722335438367,-225.95,0.0001099,2]
[333670728,1722335438378,-225.95,0.0001099,2]
[333670729,1722335438389,-225.95,0.0001099,2]
[333670730,1722335438398,-225.95,0.0001099,2]
[333670731,1722335438408,-225.95,0.0001099,2]
[333670732,1722335438417,-225.95,0.0001099,2]
[333670733,1722335438426,-225.95,0.0001099,2]
[333670734,1722335438436,-225.95,0.0001099,2]
[333670735,1722335438446,-225.95,0.0001099,2]
[333670736,1722335438455,-225.95,0.0001099,2]
[333670737,1722335438465,-225.95,0.0001099,2]
[333670738,1722335438475,-225.95,0.0001099,2]
[333670739,1722335438484,-225.95,0.0001099,2]
[333670740,1722335438493,-225.95,0.0001099,2]
[333670741,1722335438503,-225.95,0.0001099,2]
[333670742,1722335438513,-167.13304982,0.0001099,2]
[333670743,1722335438526,-58.81695018,0.0001099,2]
[333670744,1722335438536,-225.95,0.0001099,2]
[333670745,1722335438546,-225.95,0.0001099,2]
[333670746,1722335438556,-225.95,0.0001099,2]
[333670747,1722335438565,-225.95,0.0001099,2]
[333670748,1722335438575,-225.95,0.0001099,2]
[333670749,1722335438584,-38.47384982,0.0001099,2]
[333670750,1722335438595,-187.47615018,0.0001099,2]
[333670751,1722335438605,-225.95,0.0001099,2]
[333670752,1722335438614,-225.95,0.0001099,2]
[333670753,1722335438624,-225.95,0.0001099,2]
[333670754,1722335438634,-50000.0,0.0001099,2]
[333670755,1722335438643,-223091.85718794,0.00011,2]
[333670756,1722335438653,-870910.54445697,0.00011,2]
[333670757,1722335438664,-28678.38838452,0.00011,2]
[333670758,1722335439756,-752.65,8.423e-05,2]
[333670759,1722335439766,-448.8216007,0.00010687,2]
[333670760,1722335439804,-303.8283993,0.00010687,2]
[333670761,1722335439814,-22.8316007,0.00010946,2]
[333670762,1722335439859,-1338.7953993,0.00010946,2]
[333670763,1722335439869,-12590.94674268,0.00011,2]
[333670770,1722335440634,-124186.24102815,0.00011,2]
[333670771,1722335440645,-2412.95,0.00011,2]
[333670772,1722335440857,-5843.25523612,0.00011,2]
[333670795,1722335443529,-1884.13174962,0.00011,2]
[333670796,1722335443540,-1680.10540574,0.00011,2]
[333670797,1722335443561,-17864.84405494,0.00011,2]
[333670818,1722335446380,-390.67842279,0.0001078,2]
[333670819,1722335446532,-682.32768127,0.0001078,2]
[333670820,1722335446541,-9968.8805,0.000108,2]
[333670821,1722335446550,-401.48270823,0.00010999,2]
[333670822,1722335446560,-500.0,0.00010999,2]
[333670823,1722335446569,-507.97939479,0.00010999,2]
[333670824,1722335446579,-211803.8504019,0.00011,2]
[333670825,1722335446590,-1133.48489036,0.00011,2]
[333670826,1722335446602,-324.71326146,0.00011,2]
[333670827,1722335446614,-46985.99645751,0.00011,2]
[333670828,1722335446626,-4545.31242003,0.00011,2]
[333670829,1722335446664,-2580.0,0.0001099,2]
[333670830,1722335446676,-855.65800931,0.0001099,2]
[333670831,1722335446687,-542.39928832,0.0001099,2]
[333671823,1722336632319,-604.35227359,8.219e-05,2]
[333671825,1722336632331,-138.30772641,8.219e-05,2]
[333671827,1722336632341,-200.0,9.856e-05,2]
[333671829,1722336632350,-397.06,9.892e-05,2]
[333671832,1722336632360,-250.0,9.981e-05,2]
[333671834,1722336632369,-195.43511878,9.981e-05,2]
[333671836,1722336632378,-1250.0,0.0001,2]
[333671838,1722336632388,-602.94,0.00010052,2]
[333671840,1722336632398,-150.0,0.00010438,2]
[333671842,1722336632407,-742.66,0.0001047,2]
[333671844,1722336632417,-187.67841159,0.00010689,2]
[333671846,1722336632429,-112.32158841,0.00010689,2]
[333671847,1722336632438,-150.99,0.00010689,2]
[333671848,1722336632448,-6046.84,0.00010689,2]
[333671849,1722336632458,-9928.94801753,0.0001069,2]
[333671850,1722336632468,-499.99,0.00010699,2]
[333671851,1722336632477,-150.0,0.00010699,2]
[333671852,1722336632487,-717.3187,0.000107,2]
[333671853,1722336632497,-966.8388,0.000107,2]
[333671854,1722336632507,-304.8591,0.000107,2]
[333671855,1722336632516,-54942.405,0.000107,2]
[333671856,1722336632526,-2910.5872,0.000107,2]
[333671857,1722336632539,-13587.4363,0.000107,2]
[333671858,1722336632548,-283.14353814,0.000107,2]
[333671859,1722336632558,-283.14353812,0.0001075,2]
[333671860,1722336632570,-147037.0,0.00010781,2]
[333671861,1722336632579,-481.14,0.0001079,2]
[333671862,1722336632589,-5540.7447,0.000108,2]
[333671863,1722336632598,-500.0,0.000108,2]
[333671864,1722336632607,-82586.80523315,0.000108,2]
[333671865,1722336632623,-315.0,0.000108,2]
[333671866,1722336632634,-2219.57379425,0.000108,2]
[333671867,1722336632646,-474.46635641,0.000108,2]
[333671868,1722336632663,-1494.80318096,0.000108,2]
[333671869,1722336632674,-1594.50005461,0.000108,2]
[333671870,1722336632686,-133306.30368062,0.000108,2]
[333671871,1722336632696,-100000.0,0.000108,2]
[333671872,1722336632706,-1648.2538,0.000108,2]
[333671873,1722336632715,-4851.924,0.000108,2]
[333671874,1722336632725,-283.14353812,0.000108,2]
[333671875,1722336632735,-299.99,0.00010845,2]
[333671876,1722336632744,-283.14353812,0.0001085,2]
[333671877,1722336632754,-1000.0,0.000109,2]
[333671878,1722336632764,-5000.0,0.000109,2]
[333671887,1722336632956,-1390.436,0.000109,2]
[333671888,1722336632971,-283.14353812,0.000109,2]
[333671889,1722336632981,-150.53,0.000109,2]
[333671890,1722336632990,-150.53,0.000109,2]
[333671891,1722336633000,-500.0,0.00010901,2]
[333671892,1722336633009,-500.0,0.00010902,2]
[333671893,1722336633019,-221.03,0.00010904,3]
[333671894,1722336633028,-211.0,0.00010946,2]
[333671895,1722336633039,-150.0,0.00010946,2]
[333671896,1722336633048,-150.715,0.00010946,2]
[333671897,1722336633058,-192.71700328,0.00010958,2]
[333671898,1722336633067,-500.0,0.00010958,2]
[333671899,1722336633077,-519.35917331,0.00010958,2]
[333671900,1722336633087,-214.00266578,0.00010958,2]
[333671901,1722336633097,-520.34025802,0.00010958,2]
[333671902,1722336633106,-475.52958804,0.00010958,2]
[333671903,1722336633116,-500.0,0.00010958,2]
[333671904,1722336633126,-396.18288939,0.00010958,2]
[333671905,1722336633135,-494.89359198,0.00010958,2]
[333671906,1722336633145,-503.57909181,0.00010958,2]
[333671907,1722336633155,-500.0,0.00010958,2]
[333671908,1722336633164,-161.04806238,0.00010958,2]
[333671909,1722336633174,-387.85193762,0.00010958,2]
[333671910,1722336633184,-200.0,0.00010959,2]
[333671911,1722336633194,-250.0,0.00010959,2]
[333671912,1722336633203,-335.48,0.00010959,2]
[333671913,1722336633213,-150.53,0.00010989,2]
[333671914,1722336633223,-150.53,0.00010989,2]
[333671915,1722336633233,-150.53,0.00010989,2]
[333671916,1722336633246,-150.53,0.0001099,2]
[333671917,1722336633256,-150.53,0.0001099,2]
[333671918,1722336633265,-150.53,0.0001099,2]
[333671919,1722336633275,-798.39971178,0.0001099,2]
[333671920,1722336633286,-181.64348729,0.0001099,2]
[333671921,1722336633295,-37105.03036629,0.0001099,2]
[333671922,1722336633304,-392.32600264,0.0001099,2]
[333671923,1722336633315,-1049.62171461,0.0001099,2]
[333671924,1722336633325,-299.68419196,0.0001099,2]
[333671925,1722336633334,-449.09693137,0.0001099,2]
[333671926,1722336633343,-291.29119994,0.0001099,2]
[333671927,1722336633353,-363.96204734,0.0001099,2]
[333671928,1722336633363,-412.72446229,0.0001099,2]
[333671929,1722336633372,-7570.88133698,0.0001099,2]
[333671930,1722336633381,-485.18575139,0.0001099,2]
[333671931,1722336633391,-248.3920413,0.0001099,2]
[333671932,1722336633404,-155.0,0.0001099,2]
[333671933,1722336633414,-209.54219002,0.0001099,2]
[333671934,1722336633424,-411.49590119,0.0001099,2]
[333671935,1722336633434,-671.60075114,0.0001099,2]
[333671936,1722336633444,-150.53,0.0001099,2]
[333671937,1722336633454,-150.53,0.0001099,2]
[333671938,1722336633464,-150.53,0.0001099,2]
[333671939,1722336633474,-150.53,0.0001099,2]
[333671940,1722336633484,-150.53,0.0001099,2]
[333671941,1722336633494,-150.53,0.0001099,2]
[333671942,1722336633504,-150.53,0.0001099,2]
[333671943,1722336633515,-150.53,0.0001099,2]
[333671944,1722336633525,-150.53,0.0001099,2]
[333671945,1722336633539,-150.53,0.0001099,2]
[333671946,1722336633549,-150.53,0.0001099,2]
[333671947,1722336633559,-150.53,0.0001099,2]
[333671948,1722336633570,-150.53,0.0001099,2]
[333671949,1722336633580,-150.53,0.0001099,2]
[333671950,1722336633590,-150.53,0.0001099,2]
[333671951,1722336633600,-150.53,0.0001099,2]
[333671952,1722336633611,-150.53,0.0001099,2]
[333671953,1722336633620,-150.53,0.0001099,2]
[333671954,1722336633630,-150.53,0.0001099,2]
[333671955,1722336633641,-150.53,0.0001099,2]
[333671956,1722336633651,-150.53,0.0001099,2]
[333671957,1722336633660,-150.53,0.0001099,2]
[333671958,1722336633670,-150.53,0.0001099,2]
[333671959,1722336633680,-150.53,0.0001099,2]
[333671960,1722336633690,-150.53,0.0001099,2]
[333671961,1722336633700,-150.53,0.0001099,2]
[333671962,1722336633710,-150.53,0.0001099,2]
[333671963,1722336633720,-150.53,0.0001099,2]
[333671964,1722336633730,-150.53,0.0001099,2]
[333671965,1722336633739,-150.53,0.0001099,2]
[333671966,1722336633749,-150.53,0.0001099,2]
[333671967,1722336633759,-150.53,0.0001099,2]
[333671968,1722336633770,-150.53,0.0001099,2]
[333671969,1722336633780,-150.53,0.0001099,2]
[333671970,1722336633793,-150.53,0.0001099,2]
[333671971,1722336633803,-150.53,0.0001099,2]
[333671972,1722336633813,-150.53,0.0001099,2]
[333671973,1722336633823,-150.53,0.0001099,2]
[333671974,1722336633833,-150.53,0.0001099,2]
[333671975,1722336633843,-150.53,0.0001099,2]
[333671976,1722336633853,-150.53,0.0001099,2]
[333671977,1722336633863,-150.53,0.0001099,2]
[333671978,1722336633874,-150.53,0.0001099,2]
[333671979,1722336633884,-150.53,0.0001099,2]
[333671980,1722336633894,-150.53,0.0001099,2]
[333671981,1722336633903,-150.53,0.0001099,2]
[333671982,1722336633913,-150.53,0.0001099,2]
[333671983,1722336633923,-150.53,0.0001099,2]
[333671984,1722336633933,-150.53,0.0001099,2]
[333671985,1722336633943,-150.53,0.0001099,2]
[333671986,1722336633953,-166.56905154,0.00010996,2]
[333671987,1722336633963,-333.13810308,0.00010997,2]
[333671988,1722336633973,-500.0,0.00010998,2]
[333671989,1722336633983,-15212.9,0.00010998,2]
[333671990,1722336633993,-500.0,0.00010999,2]
[333671991,1722336634003,-496.57951378,0.00010999,2]
[333671992,1722336634013,-501.85351363,0.00010999,2]
[333671993,1722336634023,-246.92215705,0.00010999,2]
[333671994,1722336634033,-265.3761306,0.00010999,2]
[333671995,1722336634043,-500.0,0.00010999,2]
[333671996,1722336634052,-8245.6,0.00010999,2]
[333671997,1722336634062,-202516.30030293,0.00010999,2]
[333671998,1722336634071,-500.0,0.00010999,2]
[333671999,1722336634082,-500.0,0.00010999,2]
[333672000,1722336634092,-500.0,0.00010999,2]
[333672001,1722336634101,-500.0,0.00010999,2]
[333672002,1722336634111,-500.0,0.00010999,2]
[333672003,1722336634121,-500.0,0.00010999,2]
[333672004,1722336634131,-500.0,0.00010999,2]
[333672005,1722336634141,-253.28839486,0.00010999,2]
[333672006,1722336634150,-143448.54382124,0.00011,2]
[333672007,1722336634164,-7762.6841841,0.00011,2]
[333672008,1722336634176,-15602.263051,0.00011,2]
[333672009,1722336634187,-9231.37963767,0.00011,2]
[333672010,1722336634247,-409.12146104,0.00011,2]
[333672011,1722336634259,-1413.99277212,0.00011,2]
[333672012,1722336634271,-28021.25817531,0.00011,2]
[333672013,1722336634286,-1711.21744939,0.00011,2]
[333672014,1722336634298,-860.35582076,0.00011,2]
[333672015,1722336634311,-521.97670531,0.00011,2]
[333672016,1722336634332,-150.53,0.0001099,2]
[333672017,1722336634342,-419.46999994,0.00011,2]
[333672018,1722336634354,-351.899999,0.00011,2]
[333672019,1722336634366,-47297.87911202,0.00011,2]
[333672020,1722336634377,-8676.4371902,0.00011,2]
[333672021,1722336634389,-3725.14623216,0.00011,2]
[333672022,1722336634401,-1381.95190557,0.00011,2]
[333672023,1722336634413,-431.18512968,0.00011,2]
[333672024,1722336634424,-447.53187127,0.00011,2]
[333672025,1722336634436,-1610.6,0.00011,2]
[333672026,1722336634448,-648.88852207,0.00011,2]
[333672027,1722336634459,-679.83163208,0.00011,2]
[333672028,1722336634471,-1102.303279,0.00011,2]
[333672029,1722336634483,-501.23538144,0.00011,2]
[333672030,1722336634495,-2903.71306986,0.00011,2]
[333672031,1722336634507,-3421.55845167,0.00011,2]
[333672032,1722336634519,-849.96717983,0.00011,2]
[333672033,1722336634536,-1245.568807,0.00011,2]
[333672034,1722336634548,-1062.65487109,0.00011,2]
[333672035,1722336634560,-17994.43940248,0.00011,2]
[333672036,1722336634573,-12634.92367868,0.00011,2]
[333672037,1722336634585,-7800.69533894,0.00011,2]
[333672038,1722336634603,-150.53,0.0001099,2]
[333672039,1722336634614,-12334.5917727,0.00011,2]
[333672040,1722336634626,-905.34153942,0.00011,2]
[333672041,1722336634638,-636.79253411,0.00011,2]
[333672042,1722336634651,-1339.32568212,0.00011,2]
[333672050,1722336638371,-150.53,0.0001099,2]
[333672052,1722336638380,-150.53,0.0001099,2]
[333672054,1722336638390,-150.53,0.0001099,2]
[333672055,1722336638399,-150.53,0.0001099,2]
[333672057,1722336638409,-150.53,0.0001099,2]
[333672059,1722336638419,-150.53,0.0001099,2]
[333672061,1722336638428,-150.53,0.0001099,2]
[333672063,1722336638438,-150.53,0.0001099,2]
[333672065,1722336638448,-150.53,0.0001099,2]
[333672067,1722336638457,-150.53,0.0001099,2]
[333672069,1722336638467,-150.53,0.0001099,2]
[333672071,1722336638476,-150.53,0.0001099,2]
[333672073,1722336638486,-150.53,0.0001099,2]
[333672075,1722336638495,-150.53,0.0001099,2]
[333672077,1722336638504,-150.53,0.0001099,2]
[333672079,1722336638514,-150.53,0.0001099,2]
[333672080,1722336638523,-150.53,0.0001099,2]
[333672081,1722336638535,-117.09473281,0.0001099,2]
[333672082,1722336638548,-33.43526719,0.0001099,2]
[333672083,1722336638558,-150.53,0.0001099,2]
[333672084,1722336638567,-150.53,0.0001099,2]
[333672085,1722336638577,-150.53,0.0001099,2]
[333672086,1722336638587,-150.53,0.0001099,2]
[333672087,1722336638597,-150.53,0.0001099,2]
[333672088,1722336638607,-150.53,0.0001099,2]
[333672089,1722336638616,-150.53,0.0001099,2]
[333672090,1722336638626,-150.53,0.0001099,2]
[333672091,1722336638635,-150.53,0.0001099,2]
[333672092,1722336638645,-52.83342432,0.0001099,2]
[333672093,1722336638657,-97.69657568,0.0001099,2]
[333672094,1722336638667,-150.53,0.0001099,2]
[333672095,1722336638676,-150.53,0.0001099,2]
[333672096,1722336638686,-150.53,0.0001099,2]
[333672097,1722336638695,-150.53,0.0001099,2]
[333672098,1722336638705,-5825.25342016,0.00011,2]
[333672099,1722336638716,-28372.69788135,0.00011,2]
[333672100,1722336638728,-2928.86251045,0.00011,2]
[333672101,1722336638739,-60200.48900671,0.00011,2]
[333672102,1722336638751,-994.14751518,0.00011,2]
[333672103,1722336638762,-413.27020903,0.00011,2]
[333672104,1722336638773,-731.87882422,0.00011,2]
[333672105,1722336638786,-1019.83248483,0.00011,2]
[333672106,1722336638797,-4283.63537498,0.00011,2]
[333672107,1722336638808,-3314.30622859,0.00011,2]
[333672108,1722336638820,-2506.77543946,0.00011,2]
[333672109,1722336638831,-2604.69232305,0.00011,2]
[333672111,1722336638842,-7969.17193469,0.00011,2]
[333672113,1722336638853,-3386.27530717,0.00011,2]
[333672116,1722336638864,-7766.6385259,0.00011,2]
[333672118,1722336638875,-7214.73959698,0.00011,2]
[333672120,1722336638887,-1145.08013776,0.00011,2]
[333672122,1722336638901,-11216.25702667,0.00011,2]
[333672123,1722336638912,-20570.8866,0.00011,2]
[333672124,1722336638922,-2090.85459822,0.00011,2]
[333672125,1722336638934,-1046.41637075,0.00011,2]
[333672127,1722336638945,-5340.98495427,0.00011,2]
[333672128,1722336638956,-251.60714365,0.00011,2]
[333672129,1722336638967,-3192.66823322,0.00011,2]
[333672130,1722336638978,-6470.20833297,0.00011,2]
[333672131,1722336638989,-49149.49505869,0.00011,2]
[333672132,1722336639000,-316097.39234077,0.00011,2]
[333672133,1722336639012,-570115.14040003,0.00011,2]
[333672134,1722336639023,-16075.72136431,0.00011,2]
[333672135,1722336639037,-1876.900965,0.00011,2]
[333672136,1722336639048,-1756.14558028,0.00011,2]
[333672137,1722336639062,-509.16789362,0.00011,2]
[333672138,1722336639073,-264.54053448,0.00011,2]
[333672139,1722336639084,-1340.26476761,0.00011,2]
[333672140,1722336639094,-1491.38576594,0.00011,2]
[333672141,1722336639105,-6016.27157419,0.00011,2]
[333672142,1722336639117,-332.57131004,0.00011,2]
[333672143,1722336639128,-1651.94935281,0.00011,2]
[333672144,1722336639139,-10852.37161413,0.00011,2]
[333672145,1722336639150,-4932.02284585,0.00011,2]
[333672146,1722336639161,-785.23100942,0.00011,2]
[333672147,1722336639172,-648.10177974,0.00011,2]
[333672148,1722336639183,-616.34199997,0.00011,2]
[333672149,1722336639193,-845.302431,0.00011,2]
[333672150,1722336639205,-421.399227,0.00011,2]
[333672156,1722336640492,-519.18357221,0.00011,2]
[333672157,1722336640598,-889.49999995,0.00011,2]
[333672158,1722336640609,-714.85,0.00011,2]
[333672159,1722336640621,-400.075,0.00011,2]
[333672160,1722336640632,-667.36,0.00011,2]
[333672161,1722336640649,-52892.09806927,0.00011,2]
[333672162,1722336640824,-153.6877624,0.00010899,2]
[333672163,1722336640833,-450234.81390283,0.00011,2]
[333672164,1722336640845,-476.45777715,0.00011,2]
[333672165,1722336640992,-52877.57373107,0.00011,2]
[333672166,1722336641004,-1328.62002968,0.00011,2]
[333672167,1722336641017,-372.1835157,0.00011,2]
[333672168,1722336641029,-96960.11246096,0.00011,2]
[333672169,1722336641041,-6707.20145331,0.00011,2]
[333672227,1722336646424,-153.68776238,0.000109,2]
[333672229,1722336646434,-2501.49789739,0.00011,2]
[333672231,1722336646445,-3381.64263769,0.00011,2]
[333672233,1722336646457,-327.03219836,0.00011,2]
[333672252,1722336646654,-1035.7979605,0.00011,2]
[333672254,1722336646666,-9408.96008226,0.00011,2]
[333672306,1722336647529,-132182.5756306,0.00011,2]
[333672307,1722336850341,1000.0,0.00025,60]
[333672308,1722336860235,1000.0,0.00025,60]
[333672309,1722336867423,1000.0,0.00025,60]
[333672310,1722336901089,-798.68068213,0.00033217,30]
[333672311,1722336901113,-1000.0,0.00033217,120]
[333672312,1722336901137,-1000.0,0.00033217,60]
[333672313,1722336901161,-1000.0,0.00033217,30]
[333672314,1722336901184,-1000.0,0.00033217,120]
[333672315,1722336901207,-1000.0,0.00033217,30]
[333672316,1722336901231,-1000.0,0.00033217,30]
[333672317,1722336901256,-1000.0,0.00033217,30]
[333672318,1722336901279,-1000.0,0.00033217,60]
[333672319,1722336901302,-2000.0,0.00033217,30]
[333672320,1722336901329,-2000.0,0.00033217,30]
[333672321,1722336901546,-2000.0,0.00033217,30]
[333672322,1722336901572,-2000.0,0.00033217,30]
[333672323,1722336901596,-1000.0,0.00033217,30]
[333672324,1722336901621,-1000.0,0.00033217,30]
[333672325,1722336901644,-1000.0,0.00033217,60]
[333672326,1722336901667,-1000.0,0.00033217,60]
[333672327,1722336901690,-1000.0,0.00033217,30]
[333672328,1722336901714,-1000.0,0.00033217,120]
[333672329,1722336901737,-1000.0,0.00033217,30]
[333672330,1722336901762,-2123.89508014,0.00033217,60]
[333672331,1722336901785,-1000.0,0.00033217,30]
[333672332,1722336901809,-1000.0,0.00033217,60]
[333672333,1722336901832,-1000.0,0.00033217,30]
[333672334,1722336901856,-1000.0,0.00033217,30]
[333672335,1722336901880,-1000.0,0.00033217,60]
[333672336,1722336901903,-1000.0,0.00033217,30]
[333672337,1722336901926,-1000.0,0.00033217,30]
[333672338,1722336901950,-1000.0,0.00033217,30]
[333672339,1722336901973,-1000.0,0.00033217,120]
[333672340,1722336901997,-1000.0,0.00033217,60]
[333672341,1722336902020,-1000.0,0.00033217,60]
[333672342,1722336902045,-1000.0,0.00033217,30]
[333672343,1722336902071,-1000.0,0.00033217,60]
[333672344,1722336902096,-1000.0,0.00033217,60]
[333672345,1722336902122,-160.0,0.00033217,30]
[333672346,1722336902145,-1000.0,0.00033217,120]
[333672347,1722336902169,-192.0,0.00033217,30]
[333672348,1722336902193,-1000.0,0.00033217,60]
[333672349,1722336902217,-1000.0,0.00033217,60]
[333672350,1722336902242,-1000.0,0.00033217,30]
[333672351,1722336902266,-1000.0,0.00033217,30]
[333672352,1722336902288,-1009.23362862,0.00033217,30]
[333672353,1722336902314,-1000.0,0.00033217,30]